fUSD/lending_fUSD_20250607
["ID","MTS","AMOUNT","RATE_DAILY","PERIOD"]
[364863439,1749282648762,-1213.994422,0.00027297,7]
[364863440,1749282648772,-1213.994422,0.00027297,7]
[364863441,1749282648782,-2000.0,0.00027299,2]
[364863442,1749282648792,-5187.38,0.000273,2]
[364863443,1749282648802,-151.0,0.000273,7]
[364863444,1749282648812,-151.0,0.000273,7]
[364863445,1749282648823,-151.0,0.000273,7]
[364863446,1749282648833,-161.295383,0.000273,7]
[364863447,1749282648843,-161.295383,0.000273,7]
[364863448,1749282648853,-668.90846372,0.00027315,30]
[364863449,1749282648866,-817.50445255,0.00027336,2]
[364863450,1749282648877,-200.0,0.00027341,2]
[364863451,1749282648887,-796.51,0.00027361,2]
[364863452,1749282648896,-796.51,0.00027361,2]
[364863453,1749282648907,-795.79,0.00027361,2]
[364863454,1749282648917,-796.51,0.00027363,2]
[364863455,1749282648927,-796.51,0.00027363,2]
[364863456,1749282648936,-796.51,0.00027363,2]
[364863457,1749282648948,-796.51,0.00027363,2]
[364863458,1749282648957,-9853.96477008,0.00027365,2]
[364863459,1749282648967,-1592.66,0.00027367,2]
[364863460,1749282648977,-500.0,0.0002737,2]
[364863461,1749282648987,-916.58451705,0.0002737,2]
[364863462,1749282648997,-773.17020749,0.00027387,2]
[364863463,1749282649007,-300.0,0.00027396,10]
[364863464,1749282649017,-300.0,0.00027396,10]
[364863465,1749282649027,-482.818438,0.00027397,5]
[364863466,1749282649038,-407.42693088,0.00027397,5]
[364863467,1749282649047,-250.08935422,0.00027397,5]
[364863468,1749282649057,-483.04102565,0.00027397,5]
[364863469,1749282649068,-160.0,0.00027397,5]
[364863470,1749282649077,-480.0,0.00027397,5]
[364863471,1749282649087,-481.66132008,0.00027397,5]
[364863472,1749282649096,-596.85529705,0.00027397,5]
[364863473,1749282649106,-450.24678777,0.00027397,5]
[364863474,1749282649115,-266.19494421,0.00027397,5]
[364863475,1749282649125,-429.59645433,0.00027397,5]
[364863476,1749282649134,-151.0,0.00027397,7]
[364863477,1749282649144,-151.0,0.00027397,7]
[364863478,1749282649154,-151.0,0.00027397,7]
[364863479,1749282649164,-154.51251527,0.00027397,5]
[364863480,1749282649174,-151.0,0.00027397,7]
[364863481,1749282649185,-159.081604,0.00027397,7]
[364863482,1749282649194,-151.0,0.00027397,7]
[364863483,1749282649204,-151.0,0.00027397,7]
[364863484,1749282649214,-153.662627,0.00027397,7]
[364863485,1749282649225,-480.0,0.00027397,5]
[364863486,1749282649235,-485.92948082,0.00027397,5]
[364863487,1749282649246,-420.0,0.00027397,5]
[364863488,1749282649257,-480.0,0.00027397,5]
[364863489,1749282649267,-482.78209038,0.00027397,5]
[364863490,1749282649278,-351.00222525,0.00027397,5]
[364863491,1749282649289,-158.963045,0.00027397,5]
[364863492,1749282649299,-489.08188832,0.00027397,5]
[364863493,1749282649311,-426.66124349,0.00027397,5]
[364863494,1749282649322,-480.0,0.00027397,5]
[364863495,1749282649332,-480.0,0.00027397,5]
[364863496,1749282649343,-480.0,0.00027397,5]
[364863497,1749282649353,-480.0,0.00027397,5]
[364863498,1749282649363,-480.0,0.00027397,5]
[364863499,1749282649374,-1715.887585,0.00027397,5]
[364863500,1749282649385,-481.19927177,0.00027397,5]
[364863501,1749282649396,-480.0,0.00027397,5]
[364863502,1749282649406,-463.80218434,0.00027397,5]
[364863503,1749282649416,-2102.121321,0.00027397,5]
[364863504,1749282649426,-151.0,0.00027397,7]
[364863505,1749282649436,-151.0,0.00027397,7]
[364863506,1749282649446,-151.0,0.00027397,7]
[364863507,1749282649457,-340.58643146,0.00027397,5]
[364863508,1749282649468,-162.958385,0.00027397,5]
[364863509,1749282649479,-152.81944,0.00027397,7]
[364863510,1749282649489,-480.0,0.00027397,5]
[364863511,1749282649499,-480.0,0.00027397,5]
[364863512,1749282649510,-480.0,0.00027397,5]
[364863513,1749282649522,-480.0,0.00027397,5]
[364863514,1749282649532,-480.0,0.00027397,5]
[364863515,1749282649543,-480.0,0.00027397,5]
[364863516,1749282649553,-151.0,0.00027397,7]
[364863517,1749282649564,-197.335924,0.00027397,7]
[364863518,1749282649574,-469.52122212,0.00027397,5]
[364863519,1749282649585,-480.0,0.00027397,5]
[364863520,1749282649595,-480.0,0.00027397,5]
[364863521,1749282649605,-480.0,0.00027397,5]
[364863522,1749282649615,-480.0,0.00027397,5]
[364863523,1749282649626,-151.0,0.00027397,7]
[364863524,1749282649636,-151.0,0.00027397,7]
[364863525,1749282649646,-151.0,0.00027397,7]
[364863526,1749282649657,-480.0,0.00027397,5]
[364863527,1749282649666,-480.0,0.00027397,5]
[364863528,1749282649678,-480.0,0.00027397,5]
[364863529,1749282649688,-480.0,0.00027397,5]
[364863530,1749282649698,-480.0,0.00027397,5]
[364863531,1749282649708,-502.66103318,0.00027397,5]
[364863532,1749282649719,-480.0,0.00027397,5]
[364863533,1749282649729,-487.73958389,0.00027397,5]
[364863534,1749282649739,-480.0,0.00027397,2]
[364863535,1749282649749,-151.0,0.00027397,7]
[364863536,1749282649759,-176.665353,0.00027397,7]
[364863537,1749282649770,-480.0,0.00027397,5]
[364863538,1749282649780,-480.0,0.00027397,5]
[364863539,1749282649790,-480.0,0.00027397,5]
[364863540,1749282649800,-480.0,0.00027397,5]
[364863541,1749282649811,-480.0,0.00027397,5]
[364863542,1749282649821,-505.40257588,0.00027397,5]
[364863543,1749282649831,-151.0,0.00027397,7]
[364863544,1749282649841,-151.0,0.00027397,7]
[364863545,1749282649852,-151.0,0.00027397,7]
[364863546,1749282649865,-484.33104382,0.00027397,5]
[364863547,1749282649875,-466.81533169,0.00027397,5]
[364863548,1749282649886,-496.12803623,0.00027397,5]
[364863549,1749282649895,-151.0,0.00027397,7]
[364863550,1749282649907,-151.0,0.00027397,7]
[364863551,1749282649917,-151.0,0.00027397,7]
[364863552,1749282649927,-151.0,0.00027397,7]
[364863553,1749282649939,-151.0,0.00027397,7]
[364863554,1749282649950,-287.757394,0.00027397,7]
[364863555,1749282649960,-490.8626679,0.00027397,5]
[364863556,1749282649971,-151.0,0.00027397,7]
[364863557,1749282649981,-151.0,0.00027397,7]
[364863558,1749282649991,-151.0,0.00027397,7]
[364863559,1749282650001,-480.0,0.00027397,5]
[364863560,1749282650011,-480.0,0.00027397,5]
[364863561,1749282650022,-480.0,0.00027397,5]
[364863562,1749282650033,-480.0,0.00027397,5]
[364863563,1749282650043,-488.42832724,0.00027397,5]
[364863564,1749282650052,-480.0,0.00027397,5]
[364863565,1749282650062,-480.0,0.00027397,5]
[364863566,1749282650073,-480.0,0.00027397,5]
[364863567,1749282650082,-480.0,0.00027397,5]
[364863568,1749282650093,-480.0,0.00027397,5]
[364863569,1749282650103,-491.23809881,0.00027397,5]
[364863570,1749282650113,-480.0,0.00027397,5]
[364863571,1749282650124,-480.0,0.00027397,5]
[364863572,1749282650134,-480.0,0.00027397,5]
[364863573,1749282650144,-480.0,0.00027397,5]
[364863574,1749282650154,-480.0,0.00027397,5]
[364863575,1749282650165,-495.52185997,0.00027397,5]
[364863576,1749282650175,-773.99,0.00027397,2]
[364863577,1749282650186,-773.99,0.00027397,2]
[364863578,1749282650196,-773.99,0.00027397,2]
[364863579,1749282650205,-773.99,0.00027397,2]
[364863580,1749282650215,-773.99,0.00027397,2]
[364863581,1749282650226,-773.99,0.00027397,2]
[364863582,1749282650236,-773.99,0.00027397,2]
[364863583,1749282650246,-773.99,0.00027397,2]
[364863584,1749282650257,-773.99,0.00027397,2]
[364863585,1749282650266,-480.0,0.00027397,5]
[364863586,1749282650276,-773.99,0.00027397,2]
[364863587,1749282650286,-773.99,0.00027397,2]
[364863588,1749282650296,-773.99,0.00027397,2]
[364863589,1749282650306,-773.99,0.00027397,2]
[364863590,1749282650316,-773.99,0.00027397,2]
[364863591,1749282650326,-773.99,0.00027397,2]
[364863592,1749282650336,-773.99,0.00027397,2]
[364863593,1749282650346,-773.99,0.00027397,2]
[364863594,1749282650356,-480.0,0.00027397,5]
[364863595,1749282650366,-773.99,0.00027397,2]
[364863596,1749282650376,-773.99,0.00027397,2]
[364863597,1749282650386,-773.99,0.00027397,2]
[364863598,1749282650396,-773.99,0.00027397,2]
[364863599,1749282650405,-773.99,0.00027397,2]
[364863600,1749282650417,-773.99,0.00027397,2]
[364863601,1749282650427,-151.0,0.00027397,7]
[364863602,1749282650438,-774.07,0.00027397,2]
[364863603,1749282650448,-151.0,0.00027397,7]
[364863604,1749282650457,-151.0,0.00027397,7]
[364863605,1749282650467,-484.56024671,0.00027397,5]
[364863606,1749282650477,-355.83070683,0.00027397,5]
[364863607,1749282650491,-477.12670696,0.00027397,5]
[364863608,1749282650504,-492.2470995,0.00027397,5]
[364863609,1749282650514,-480.0,0.00027397,5]
[364863610,1749282650525,-480.0,0.00027397,5]
[364863611,1749282650535,-495.78,0.00027397,5]
[364863612,1749282650545,-491.9551073,0.00027397,5]
[364863613,1749282650555,-492.26232599,0.00027397,5]
[364863614,1749282650565,-480.0,0.00027397,5]
[364863615,1749282650575,-480.0,0.00027397,5]
[364863616,1749282650585,-480.0,0.00027397,5]
[364863617,1749282650596,-480.0,0.00027397,5]
[364863618,1749282650606,-480.0,0.00027397,5]
[364863619,1749282650616,-480.0,0.00027397,5]
[364863620,1749282650626,-480.0,0.00027397,5]
[364863621,1749282650636,-480.0,0.00027397,5]
[364863622,1749282650646,-480.0,0.00027397,5]
[364863623,1749282650656,-460.00088065,0.00027397,5]
[364863624,1749282650665,-480.0,0.00027397,5]
[364863625,1749282650676,-480.0,0.00027397,5]
[364863626,1749282650687,-480.0,0.00027397,5]
[364863627,1749282650697,-480.0,0.00027397,5]
[364863628,1749282650706,-480.0,0.00027397,5]
[364863629,1749282650716,-151.0,0.00027397,7]
[364863630,1749282650726,-151.0,0.00027397,7]
[364863631,1749282650737,-151.0,0.00027397,7]
[364863632,1749282650747,-480.0,0.00027397,5]
[364863633,1749282650757,-466.2013567,0.00027397,5]
[364863634,1749282650767,-480.0,0.00027397,5]
[364863635,1749282650777,-480.0,0.00027397,5]
[364863636,1749282650787,-480.0,0.00027397,5]
[364863637,1749282650799,-480.0,0.00027397,5]
[364863638,1749282650809,-427.3457674,0.00027397,5]
[364863639,1749282650819,-480.0,0.00027397,5]
[364863640,1749282650829,-480.0,0.00027397,5]
[364863641,1749282650839,-813.01,0.00027397,5]
[364863642,1749282650849,-480.0,0.00027397,5]
[364863643,1749282650859,-500.0,0.00027397,5]
[364863644,1749282650873,-500.0,0.00027397,5]
[364863645,1749282650883,-500.0,0.00027397,5]
[364863646,1749282650893,-500.0,0.00027397,5]
[364863647,1749282650902,-500.0,0.00027397,5]
[364863648,1749282650914,-500.0,0.00027397,5]
[364863649,1749282650926,-500.0,0.00027397,5]
[364863650,1749282650936,-314.743866,0.00027397,7]
[364863651,1749282650947,-314.743866,0.00027397,7]
[364863652,1749282650957,-153.155426,0.00027397,7]
[364863653,1749282650968,-314.743866,0.00027397,7]
[364863654,1749282650979,-480.0,0.00027397,5]
[364863655,1749282650989,-480.0,0.00027397,5]
[364863656,1749282651000,-480.79945134,0.00027397,5]
[364863657,1749282651377,-314.743866,0.00027397,7]
[364863658,1749282651389,-314.743866,0.00027397,7]
[364863659,1749282651399,-427.14605506,0.00027397,5]
[364863660,1749282651408,-314.743866,0.00027397,7]
[364863661,1749282651417,-480.0,0.00027397,5]
[364863662,1749282651426,-552.87818433,0.00027397,5]
[364863663,1749282651436,-480.0,0.00027397,5]
[364863664,1749282651446,-480.0,0.00027397,5]
[364863665,1749282651457,-247.57441204,0.00027397,5]
[364863666,1749282651467,-480.0,0.00027397,5]
[364863667,1749282651477,-487.28168083,0.00027397,5]
[364863668,1749282651487,-480.0,0.00027397,5]
[364863669,1749282651497,-480.0,0.00027397,5]
[364863670,1749282651507,-480.0,0.00027397,5]
[364863671,1749282651516,-480.0,0.00027397,5]
[364863672,1749282651525,-480.0,0.00027397,5]
[364863673,1749282651535,-480.0,0.00027397,5]
[364863674,1749282651544,-151.0,0.00027397,7]
[364863675,1749282651554,-151.0,0.00027397,7]
[364863676,1749282651563,-151.0,0.00027397,7]
[364863677,1749282651573,-485.72205612,0.00027397,5]
[364863678,1749282651582,-480.0,0.00027397,5]
[364863679,1749282651592,-480.0,0.00027397,5]
[364863680,1749282651602,-480.0,0.00027397,5]
[364863681,1749282651612,-480.0,0.00027397,5]
[364863682,1749282651621,-480.0,0.00027397,5]
[364863683,1749282651631,-487.64773492,0.00027397,5]
[364863684,1749282651641,-480.0,0.00027397,5]
[364863685,1749282651650,-524.15897064,0.00027397,5]
[364863686,1749282651659,-1016.188715,0.00027397,7]
[364863687,1749282651669,-1016.188715,0.00027397,7]
[364863688,1749282651678,-1016.188715,0.00027397,7]
[364863689,1749282651688,-488.13758326,0.00027397,5]
[364863690,1749282651698,-480.0,0.00027397,5]
[364863691,1749282651707,-495.25761186,0.00027397,5]
[364863692,1749282651717,-480.0,0.00027397,5]
[364863693,1749282651727,-1016.188715,0.00027397,7]
[364863694,1749282651737,-1016.188715,0.00027397,7]
[364863695,1749282651747,-1016.188715,0.00027397,7]
[364863696,1749282651758,-425.07826374,0.00027397,5]
[364863697,1749282651770,-480.0,0.00027397,5]
[364863698,1749282651780,-429.75405372,0.00027397,5]
[364863699,1749282651791,-480.0,0.00027397,5]
[364863700,1749282651801,-480.0,0.00027397,5]
[364863701,1749282651811,-429.02331791,0.00027397,5]
[364863702,1749282651822,-480.0,0.00027397,5]
[364863703,1749282651831,-483.29720452,0.00027397,5]
[364863704,1749282651841,-480.0,0.00027397,5]
[364863705,1749282651851,-480.0,0.00027397,5]
[364863706,1749282651862,-480.0,0.00027397,2]
[364863707,1749282651871,-486.47136559,0.00027397,5]
[364863708,1749282651881,-480.0,0.00027397,5]
[364863709,1749282651891,-480.0,0.00027397,2]
[364863710,1749282651900,-480.0,0.00027397,5]
[364863711,1749282651911,-491.7457715,0.00027397,5]
[364863712,1749282651921,-497.6411766,0.00027397,5]
[364863713,1749282651931,-564.70409553,0.00027397,5]
[364863714,1749282651942,-480.0,0.00027397,5]
[364863715,1749282651954,-577.15,0.00027397,5]
[364863716,1749282651964,-480.08528522,0.00027397,2]
[364863717,1749282651973,-488.949945,0.00027397,5]
[364863718,1749282651983,-480.0,0.00027397,5]
[364863719,1749282651992,-480.0,0.00027397,5]
[364863720,1749282652002,-163.913978,0.00027397,7]
[364863721,1749282652013,-163.913978,0.00027397,7]
[364863722,1749282652023,-163.913978,0.00027397,7]
[364863723,1749282652032,-721.261256,0.00027397,7]
[364863724,1749282652041,-721.261256,0.00027397,7]
[364863725,1749282652051,-505.36083968,0.00027397,5]
[364863726,1749282652061,-721.261256,0.00027397,7]
[364863727,1749282652070,-549.32840579,0.00027397,5]
[364863728,1749282652080,-480.0,0.00027397,5]
[364863729,1749282652090,-163.913978,0.00027397,7]
[364863730,1749282652099,-163.913978,0.00027397,7]
[364863731,1749282652109,-480.0,0.00027397,5]
[364863732,1749282652119,-163.913978,0.00027397,7]
[364863733,1749282652128,-485.65283659,0.00027397,5]
[364863734,1749282652138,-483.54103888,0.00027397,5]
[364863735,1749282652148,-482.43779893,0.00027397,5]
[364863736,1749282652157,-721.261256,0.00027397,7]
[364863737,1749282652166,-557.93229089,0.00027397,5]
[364863738,1749282652176,-721.261256,0.00027397,7]
[364863739,1749282652186,-721.261256,0.00027397,7]
[364863740,1749282652195,-480.0,0.00027397,5]
[364863741,1749282652205,-509.8,0.00027397,5]
[364863742,1749282652215,-480.0,0.00027397,5]
[364863743,1749282652225,-480.0,0.00027397,5]
[364863744,1749282652235,-224.860027,0.00027397,7]
[364863745,1749282652245,-224.860027,0.00027397,7]
[364863746,1749282652255,-224.860027,0.00027397,7]
[364863747,1749282652265,-224.860027,0.00027397,7]
[364863748,1749282652276,-480.0,0.00027397,5]
[364863749,1749282652287,-480.0,0.00027397,5]
[364863750,1749282652297,-224.860027,0.00027397,7]
[364863751,1749282652306,-224.860027,0.00027397,7]
[364863752,1749282652316,-480.0,0.00027397,5]
[364863753,1749282652326,-224.860027,0.00027397,7]
[364863754,1749282652335,-224.860027,0.00027397,7]
[364863755,1749282652344,-480.0,0.00027397,5]
[364863756,1749282652354,-480.0,0.00027397,2]
[364863757,1749282652363,-474.83599662,0.00027397,5]
[364863758,1749282652373,-490.41264568,0.00027397,5]
[364863759,1749282652383,-480.0,0.00027397,5]
[364863760,1749282652392,-515.42095429,0.00027397,5]
[364863761,1749282652401,-480.0,0.00027397,5]
[364863762,1749282652411,-480.0,0.00027397,5]
[364863763,1749282652421,-488.26239483,0.00027397,5]
[364863764,1749282652430,-480.0,0.00027397,5]
[364863765,1749282652440,-480.0,0.00027397,5]
[364863766,1749282652449,-480.0,0.00027397,5]
[364863767,1749282652460,-496.77805165,0.00027397,5]
[364863768,1749282652469,-492.29958263,0.00027397,5]
[364863769,1749282652479,-480.0,0.00027397,5]
[364863770,1749282652488,-480.0,0.00027397,5]
[364863771,1749282652498,-480.0,0.00027397,5]
[364863772,1749282652507,-480.0,0.00027397,5]
[364863773,1749282652517,-480.0,0.00027397,5]
[364863774,1749282652526,-498.04423124,0.00027397,5]
[364863775,1749282652536,-493.53946727,0.00027397,5]
[364863776,1749282652545,-509.47112471,0.00027397,5]
[364863777,1749282652555,-480.0,0.00027397,5]
[364863778,1749282652565,-480.0,0.00027397,5]
[364863779,1749282652574,-842.56,0.00027397,5]
[364863780,1749282652584,-151.0,0.00027397,7]
[364863781,1749282652593,-151.0,0.00027397,7]
[364863782,1749282652603,-484.65494655,0.00027397,5]
[364863783,1749282652613,-151.0,0.00027397,7]
[364863784,1749282652622,-222.34240529,0.00027397,5]
[364863785,1749282652631,-433.47910582,0.00027397,5]
[364863786,1749282652641,-480.0,0.00027397,5]
[364863787,1749282652651,-618.47,0.00027397,5]
[364863788,1749282652660,-480.0,0.00027397,5]
[364863789,1749282652670,-498.61095277,0.00027397,5]
[364863790,1749282652679,-480.0,0.00027397,5]
[364863791,1749282652689,-480.0,0.00027397,5]
[364863792,1749282652698,-327.769811,0.00027397,7]
[364863793,1749282652708,-480.0,0.00027397,5]
[364863794,1749282652717,-151.0,0.00027397,7]
[364863795,1749282652727,-327.769811,0.00027397,7]
[364863796,1749282652736,-151.0,0.00027397,7]
[364863797,1749282652745,-327.769811,0.00027397,7]
[364863798,1749282652754,-480.0,0.00027397,5]
[364863799,1749282652764,-151.789566,0.00027397,7]
[364863800,1749282652773,-480.0,0.00027397,5]
[364863801,1749282652783,-367.356215,0.00027397,7]
[364863802,1749282652793,-486.09126929,0.00027397,5]
[364863803,1749282652802,-367.356215,0.00027397,7]
[364863804,1749282652811,-367.356215,0.00027397,7]
[364863805,1749282652820,-480.0,0.00027397,5]
[364863806,1749282652832,-367.356215,0.00027397,7]
[364863807,1749282652842,-480.0,0.00027397,5]
[364863808,1749282652854,-480.0,0.00027397,5]
[364863809,1749282652868,-327.769811,0.00027397,7]
[364863810,1749282652877,-327.769811,0.00027397,7]
[364863811,1749282652887,-1163.74,0.00027397,5]
[364863812,1749282652896,-327.769811,0.00027397,7]
[364863813,1749282652907,-480.0,0.00027397,5]
[364863814,1749282652916,-367.356215,0.00027397,7]
[364863815,1749282652926,-367.356215,0.00027397,7]
[364863816,1749282652937,-480.0,0.00027397,5]
[364863817,1749282652948,-480.0,0.00027397,5]
[364863818,1749282652958,-367.356215,0.00027397,7]
[364863819,1749282652969,-367.356215,0.00027397,7]
[364863820,1749282652978,-480.0,0.00027397,5]
[364863821,1749282652988,-480.0,0.00027397,5]
[364863822,1749282652997,-480.0,0.00027397,5]
[364863823,1749282653006,-480.0,0.00027397,5]
[364863824,1749282653016,-480.0,0.00027397,5]
[364863825,1749282653025,-480.0,0.00027397,5]
[364863826,1749282653034,-489.73576939,0.00027397,5]
[364863827,1749282653044,-480.87981901,0.00027397,2]
[364863828,1749282653053,-486.16993969,0.00027397,5]
[364863829,1749282653063,-432.30071169,0.00027397,5]
[364863830,1749282653072,-807.84,0.00027397,5]
[364863831,1749282653082,-480.0,0.00027397,5]
[364863832,1749282653091,-480.0,0.00027397,5]
[364863833,1749282653101,-480.0,0.00027397,5]
[364863834,1749282653110,-155.707702,0.00027397,5]
[364863835,1749282653120,-480.0,0.00027397,5]
[364863836,1749282653130,-480.0,0.00027397,5]
[364863837,1749282653139,-480.0,0.00027397,5]
[364863838,1749282653149,-433.07089719,0.00027397,5]
[364863839,1749282653158,-560.14257479,0.00027397,5]
[364863840,1749282653167,-480.0,0.00027397,5]
[364863841,1749282653177,-484.29621027,0.00027397,5]
[364863842,1749282653186,-480.0,0.00027397,5]
[364863843,1749282653196,-526.5,0.00027397,5]
[364863844,1749282653205,-480.0,0.00027397,5]
[364863845,1749282653215,-722.49,0.00027397,5]
[364863846,1749282653226,-499.8827556,0.00027397,5]
[364863847,1749282653235,-480.0,0.00027397,5]
[364863848,1749282653245,-480.0,0.00027397,5]
[364863849,1749282653255,-480.0,0.00027397,5]
[364863850,1749282653263,-431.3303936,0.00027397,5]
[364863851,1749282653272,-480.0,0.00027397,5]
[364863852,1749282653280,-480.0,0.00027397,5]
[364863853,1749282653288,-480.0,0.00027397,5]
[364863854,1749282653296,-480.0,0.00027397,5]
[364863855,1749282653304,-480.0,0.00027397,5]
[364863856,1749282653313,-480.0,0.00027397,5]
[364863857,1749282653323,-480.0,0.00027397,5]
[364863858,1749282653333,-342.42443047,0.00027397,5]
[364863859,1749282653342,-480.0,0.00027397,5]
[364863860,1749282653351,-480.0,0.00027397,5]
[364863861,1749282653361,-658.07,0.00027397,5]
[364863862,1749282653370,-480.0,0.00027397,5]
[364863863,1749282653380,-610.98,0.00027397,5]
[364863864,1749282653389,-529.43157275,0.00027397,5]
[364863865,1749282653398,-548.11,0.00027397,5]
[364863866,1749282653408,-295.22800815,0.00027397,5]
[364863867,1749282653417,-480.0,0.00027397,5]
[364863868,1749282653427,-480.0,0.00027397,5]
[364863869,1749282653436,-480.0,0.00027397,5]
[364863870,1749282653445,-480.0,0.00027397,5]
[364863871,1749282653454,-429.802131,0.00027397,7]
[364863872,1749282653464,-429.802131,0.00027397,7]
[364863873,1749282653473,-429.802131,0.00027397,7]
[364863874,1749282653483,-480.0,0.00027397,5]
[364863875,1749282653492,-429.802131,0.00027397,7]
[364863876,1749282653503,-480.0,0.00027397,5]
[364863877,1749282653512,-429.802131,0.00027397,7]
[364863878,1749282653522,-480.0,0.00027397,5]
[364863879,1749282653531,-429.802131,0.00027397,7]
[364863880,1749282653541,-1423.16,0.00027397,5]
[364863881,1749282653550,-480.0,0.00027397,5]
[364863882,1749282653561,-482.16696901,0.00027397,5]
[364863883,1749282653570,-480.0,0.00027397,5]
[364863884,1749282653580,-480.0,0.00027397,5]
[364863885,1749282653590,-480.0,0.00027397,5]
[364863886,1749282653599,-480.0,0.00027397,5]
[364863887,1749282653608,-676.89,0.00027397,5]
[364863888,1749282653617,-1030.91,0.00027397,5]
[364863889,1749282653627,-300.0,0.00027397,5]
[364863890,1749282653636,-434.5505268,0.00027397,5]
[364863891,1749282653646,-480.0,0.00027397,5]
[364863892,1749282653656,-484.81840201,0.00027397,5]
[364863893,1749282653665,-482.33615052,0.00027397,5]
[364863894,1749282653767,-480.0,0.00027397,5]
[364863895,1749282653776,-480.0,0.00027397,5]
[364863896,1749282653785,-480.0,0.00027397,5]
[364863897,1749282653796,-903.48,0.00027397,5]
[364863898,1749282653805,-428.67987014,0.00027397,5]
[364863899,1749282653814,-480.0,0.00027397,5]
[364863900,1749282653823,-545.14,0.00027397,5]
[364863901,1749282653832,-480.0,0.00027397,5]
[364863902,1749282653841,-480.0,0.00027397,5]
[364863903,1749282653850,-480.0,0.00027397,5]
[364863904,1749282653860,-580.63,0.00027397,5]
[364863905,1749282653871,-1746.745216,0.00027397,7]
[364863906,1749282653880,-624.11,0.00027397,5]
[364863907,1749282653890,-509.07501896,0.00027397,5]
[364863908,1749282653899,-1746.745216,0.00027397,7]
[364863909,1749282653909,-1746.745216,0.00027397,7]
[364863910,1749282653918,-1746.745216,0.00027397,7]
[364863911,1749282653927,-482.9088306,0.00027397,5]
[364863912,1749282653938,-480.0,0.00027397,5]
[364863913,1749282653947,-480.0,0.00027397,5]
[364863914,1749282653956,-1746.745216,0.00027397,7]
[364863915,1749282653965,-1746.745216,0.00027397,7]
[364863916,1749282653975,-1746.745216,0.00027397,7]
[364863917,1749282653985,-480.0,0.00027397,5]
[364863918,1749282653994,-1746.745216,0.00027397,7]
[364863919,1749282654002,-480.0,0.00027397,5]
[364863920,1749282654011,-210.34723874,0.00027397,5]
[364863921,1749282654020,-2000.0,0.00027397,5]
[364863922,1749282654030,-480.0,0.00027397,5]
[364863923,1749282654039,-491.30367506,0.00027397,5]
[364863924,1749282654048,-480.0,0.00027397,5]
[364863925,1749282654057,-480.0,0.00027397,5]
[364863926,1749282654067,-480.0,0.00027397,5]
[364863927,1749282654076,-391.51288326,0.00027397,5]
[364863928,1749282654085,-480.0,0.00027397,5]
[364863929,1749282654094,-480.0,0.00027397,5]
[364863930,1749282654103,-155.16629765,0.00027397,5]
[364863931,1749282654118,-480.0,0.00027397,5]
[364863932,1749282654128,-480.0,0.00027397,5]
[364863933,1749282654137,-172.32450229,0.00027397,5]
[364863934,1749282654146,-491.95248591,0.00027397,5]
[364863935,1749282654156,-1137.84,0.00027397,5]
[364863936,1749282654165,-480.0,0.00027397,5]
[364863937,1749282654175,-480.0,0.00027397,5]
[364863938,1749282654184,-500.0,0.00027397,5]